[Event "Titled Tuesday Blitz November 07 Early 2023"]
[White "Xiong, Jeffery"]
[Black "Hnydiuk, Aleksander"]
[WhiteFideId "2047640"]
[BlackFideId "1109057"]
[WhiteElo "3007"]
[BlackElo "2511"]
[Result "1-0"]
[Round "1"]
[TimeControl "180+1"]
[Date "2023.11.07"]
[WhiteClock "0:01:25"]
[BlackClock "0:00:00"]
[Board "13"]

1. d4 {[%clk 0:03:00]}  d5 {[%clk 0:02:58]} 2. c4 {[%clk 0:03:01]}  e6 {[%clk 0:02:58]} 3. Nf3 {[%clk 0:02:59]}  a6 {[%clk 0:02:58]} 4. Bg5 {[%clk 0:02:46]}  Be7 {[%clk 0:02:55]} 5. Bxe7 {[%clk 0:02:46]}  Qxe7 {[%clk 0:02:56]} 6. Nbd2 {[%clk 0:02:46]}  Nf6 {[%clk 0:02:56]} 7. g3 {[%clk 0:02:46]}  O-O {[%clk 0:02:52]} 8. Rc1 {[%clk 0:02:46]}  b6 {[%clk 0:02:41]} 9. cxd5 {[%clk 0:02:45]}  exd5 {[%clk 0:02:40]} 10. Bg2 {[%clk 0:02:46]}  c5 {[%clk 0:02:29]} 11. O-O {[%clk 0:02:46]}  Bf5 {[%clk 0:02:12]} 12. dxc5 {[%clk 0:02:22]}  bxc5 {[%clk 0:02:13]} 13. Re1 {[%clk 0:02:20]}  Nbd7 {[%clk 0:02:07]} 14. Nh4 {[%clk 0:02:19]}  Bg4 {[%clk 0:01:49]} 15. h3 {[%clk 0:02:19]}  Bh5 {[%clk 0:01:49]} 16. g4 {[%clk 0:02:18]}  Bg6 {[%clk 0:01:44]} 17. e4 {[%clk 0:02:18]}  Nxe4 {[%clk 0:01:26]} 18. Nxg6 {[%clk 0:02:14]}  hxg6 {[%clk 0:01:25]} 19. Nxe4 {[%clk 0:02:14]}  dxe4 {[%clk 0:01:24]} 20. Bxe4 {[%clk 0:01:58]}  Rad8 {[%clk 0:01:09]} 21. Bxg6 {[%clk 0:01:52]}  Ne5 {[%clk 0:01:03]} 22. Qe2 {[%clk 0:01:51]}  fxg6 {[%clk 0:00:29]} 23. Qxe5 {[%clk 0:01:51]}  Qxe5 {[%clk 0:00:28]} 24. Rxe5 {[%clk 0:01:52]}  Rd2 {[%clk 0:00:28]} 25. Rf1 {[%clk 0:01:38]}  Rxb2 {[%clk 0:00:26]} 26. Rxc5 {[%clk 0:01:38]}  Rxa2 {[%clk 0:00:26]} 27. Kg2 {[%clk 0:01:38]}  a5 {[%clk 0:00:23]} 28. Kg3 {[%clk 0:01:39]}  a4 {[%clk 0:00:21]} 29. f3 {[%clk 0:01:39]}  a3 {[%clk 0:00:16]} 30. Re1 {[%clk 0:01:39]}  Rd8 {[%clk 0:00:14]} 31. Rc7 {[%clk 0:01:36]}  Rb2 {[%clk 0:00:11]} 32. Ree7 {[%clk 0:01:35]}  a2 {[%clk 0:00:11]} 33. Ra7 {[%clk 0:01:34]}  Rd1 {[%clk 0:00:06]} 34. Rxg7+ {[%clk 0:01:34]}  Kf8 {[%clk 0:00:00]} 35. Rgc7 {[%clk 0:01:25]} 1-0


[Site "https://www.chess.com"]

[Event "Titled Tuesday Blitz November 07 Early 2023"]
[White "Molenda, Marcin"]
[Black "Elsa167"]
[WhiteFideId "1173065"]
[WhiteElo "2510"]
[BlackElo "3001"]
[Result "1/2-1/2"]
[Round "1"]
[TimeControl "180+1"]
[Date "2023.11.07"]
[WhiteClock "0:00:47"]
[BlackClock "0:00:17"]
[Board "14"]

1. e4 {[%clk 0:03:00]}  e6 {[%clk 0:02:59]} 2. d4 {[%clk 0:02:54]}  d5 {[%clk 0:02:58]} 3. e5 {[%clk 0:02:55]}  c5 {[%clk 0:02:58]} 4. c3 {[%clk 0:02:54]}  Nc6 {[%clk 0:02:58]} 5. Nf3 {[%clk 0:02:54]}  Qb6 {[%clk 0:02:59]} 6. Be2 {[%clk 0:02:54]}  Bd7 {[%clk 0:02:56]} 7. O-O {[%clk 0:02:54]}  Nge7 {[%clk 0:02:56]} 8. a3 {[%clk 0:02:54]}  c4 {[%clk 0:02:50]} 9. Re1 {[%clk 0:02:48]}  Na5 {[%clk 0:02:50]} 10. Nbd2 {[%clk 0:02:49]}  Nc8 {[%clk 0:02:43]} 11. Nf1 {[%clk 0:02:45]}  Nb3 {[%clk 0:02:39]} 12. Rb1 {[%clk 0:02:44]}  Ba4 {[%clk 0:02:23]} 13. Bg5 {[%clk 0:02:34]}  h6 {[%clk 0:01:56]} 14. Bh4 {[%clk 0:02:32]}  Qa5 {[%clk 0:01:50]} 15. Kh1 {[%clk 0:01:49]}  g5 {[%clk 0:01:42]} 16. Bg3 {[%clk 0:01:48]}  Be7 {[%clk 0:01:43]} 17. Ng1 {[%clk 0:01:48]}  Nb6 {[%clk 0:01:26]} 18. Bh5 {[%clk 0:01:46]}  Rf8 {[%clk 0:01:15]} 19. Qf3 {[%clk 0:01:43]}  O-O-O {[%clk 0:01:15]} 20. Bxf7 {[%clk 0:01:41]}  Bd7 {[%clk 0:00:47]} 21. Qh5 {[%clk 0:01:41]}  Rh8 {[%clk 0:00:46]} 22. Qh3 {[%clk 0:01:17]}  h5 {[%clk 0:00:44]} 23. Bxh5 {[%clk 0:01:16]}  Rh6 {[%clk 0:00:39]} 24. Qg4 {[%clk 0:01:08]}  Rdh8 {[%clk 0:00:39]} 25. Bf7 {[%clk 0:00:57]}  Rf8 {[%clk 0:00:29]} 26. Bh5 {[%clk 0:00:53]}  Rfh8 {[%clk 0:00:27]} 27. Bf7 {[%clk 0:00:53]}  Rf8 {[%clk 0:00:17]} 28. Bh5 {[%clk 0:00:47]}  Rfh8 {[%clk 0:00:17]} 1/2-1/2


[Site "https://www.chess.com"]

[Event "Titled Tuesday Blitz November 07 Early 2023"]
[White "Baches Garcia, Guillermo"]
[Black "Oparin, Grigoriy"]
[WhiteFideId "2209764"]
[BlackFideId "24125890"]
[WhiteElo "2507"]
[BlackElo "2980"]
[Result "0-1"]
[Round "1"]
[TimeControl "180+1"]
[Date "2023.11.07"]
[WhiteClock "0:00:00"]
[BlackClock "0:01:12"]
[Board "18"]

1. d4 {[%clk 0:03:00]}  Nf6 {[%clk 0:02:59]} 2. Nf3 {[%clk 0:03:00]}  b6 {[%clk 0:02:58]} 3. Bg5 {[%clk 0:03:00]}  Bb7 {[%clk 0:02:58]} 4. Nbd2 {[%clk 0:03:01]}  e6 {[%clk 0:02:47]} 5. e3 {[%clk 0:03:01]}  d6 {[%clk 0:02:43]} 6. Bd3 {[%clk 0:02:59]}  Nbd7 {[%clk 0:02:43]} 7. h3 {[%clk 0:02:58]}  h6 {[%clk 0:02:41]} 8. Bh4 {[%clk 0:02:58]}  g5 {[%clk 0:02:38]} 9. Bg3 {[%clk 0:02:57]}  Bg7 {[%clk 0:02:39]} 10. Qe2 {[%clk 0:02:57]}  Qe7 {[%clk 0:02:38]} 11. Ba6 {[%clk 0:02:49]}  Bxa6 {[%clk 0:02:38]} 12. Qxa6 {[%clk 0:02:49]}  O-O {[%clk 0:02:38]} 13. c3 {[%clk 0:02:46]}  e5 {[%clk 0:02:34]} 14. O-O {[%clk 0:02:27]}  e4 {[%clk 0:02:33]} 15. Ne1 {[%clk 0:02:22]}  Kh8 {[%clk 0:02:29]} 16. Nc2 {[%clk 0:02:17]}  Nh5 {[%clk 0:02:29]} 17. Bh2 {[%clk 0:02:17]}  f5 {[%clk 0:02:29]} 18. Rae1 {[%clk 0:02:11]}  Ndf6 {[%clk 0:02:27]} 19. Qb7 {[%clk 0:01:59]}  Rae8 {[%clk 0:02:21]} 20. Nb4 {[%clk 0:01:48]}  a5 {[%clk 0:02:20]} 21. Nd5 {[%clk 0:01:45]}  Nxd5 {[%clk 0:02:20]} 22. Qxd5 {[%clk 0:01:45]}  Qd7 {[%clk 0:02:20]} 23. c4 {[%clk 0:01:36]}  Nf4 {[%clk 0:02:03]} 24. Bxf4 {[%clk 0:01:18]}  gxf4 {[%clk 0:02:02]} 25. Qb5 {[%clk 0:01:09]}  c6 {[%clk 0:02:01]} 26. Qxb6 {[%clk 0:01:06]}  Rb8 {[%clk 0:01:54]} 27. Qxa5 {[%clk 0:01:04]}  Rxb2 {[%clk 0:01:55]} 28. Rb1 {[%clk 0:00:53]}  Rxb1 {[%clk 0:01:47]} 29. Rxb1 {[%clk 0:00:52]}  fxe3 {[%clk 0:01:47]} 30. fxe3 {[%clk 0:00:52]}  f4 {[%clk 0:01:47]} 31. exf4 {[%clk 0:00:31]}  Bxd4+ {[%clk 0:01:45]} 32. Kh1 {[%clk 0:00:31]}  Qf7 {[%clk 0:01:45]} 33. Rf1 {[%clk 0:00:27]}  e3 {[%clk 0:01:43]} 34. Nb3 {[%clk 0:00:22]}  Qxc4 {[%clk 0:01:43]} 35. Qe1 {[%clk 0:00:17]}  Bc3 {[%clk 0:01:38]} 36. Qc1 {[%clk 0:00:10]}  e2 {[%clk 0:01:33]} 37. Re1 {[%clk 0:00:05]}  Re8 {[%clk 0:01:25]} 38. f5 {[%clk 0:00:04]}  Kh7 {[%clk 0:01:17]} 39. Na5 {[%clk 0:00:00]}  Qd3 {[%clk 0:01:12]} 0-1


[Site "https://www.chess.com"]

[Event "Titled Tuesday Blitz November 07 Early 2023"]
[White "topce"]
[Black "Sjugirov, Sanan"]
[BlackFideId "4189302"]
[WhiteElo "2506"]
[BlackElo "2971"]
[Result "1-0"]
[Round "1"]
[TimeControl "180+1"]
[Date "2023.11.07"]
[WhiteClock "0:01:27"]
[BlackClock "0:00:03"]
[Board "20"]

1. c4 {[%clk 0:03:00]}  e6 {[%clk 0:02:58]} 2. Nc3 {[%clk 0:03:01]}  d5 {[%clk 0:02:58]} 3. d4 {[%clk 0:03:02]}  Nf6 {[%clk 0:02:57]} 4. cxd5 {[%clk 0:03:02]}  exd5 {[%clk 0:02:58]} 5. Bg5 {[%clk 0:03:02]}  c6 {[%clk 0:02:59]} 6. e3 {[%clk 0:03:02]}  h6 {[%clk 0:02:57]} 7. Bh4 {[%clk 0:03:02]}  Be7 {[%clk 0:02:57]} 8. Bd3 {[%clk 0:03:01]}  O-O {[%clk 0:02:58]} 9. Nge2 {[%clk 0:03:02]}  Re8 {[%clk 0:02:58]} 10. f3 {[%clk 0:03:02]}  b5 {[%clk 0:02:49]} 11. Bf2 {[%clk 0:03:00]}  Nbd7 {[%clk 0:02:42]} 12. O-O {[%clk 0:03:00]}  b4 {[%clk 0:01:58]} 13. Na4 {[%clk 0:02:58]}  c5 {[%clk 0:01:58]} 14. dxc5 {[%clk 0:02:54]}  Nxc5 {[%clk 0:01:59]} 15. Bb5 {[%clk 0:02:42]}  Bd7 {[%clk 0:01:57]} 16. Bxd7 {[%clk 0:02:38]}  Qxd7 {[%clk 0:01:56]} 17. Nxc5 {[%clk 0:02:38]}  Bxc5 {[%clk 0:01:57]} 18. Nd4 {[%clk 0:02:38]}  Rac8 {[%clk 0:01:39]} 19. Qd3 {[%clk 0:02:36]}  Bb6 {[%clk 0:01:27]} 20. Nf5 {[%clk 0:02:18]}  Qe6 {[%clk 0:01:19]} 21. Rfe1 {[%clk 0:02:09]}  Nd7 {[%clk 0:00:44]} 22. g4 {[%clk 0:02:07]}  Ne5 {[%clk 0:00:42]} 23. Qe2 {[%clk 0:02:05]}  h5 {[%clk 0:00:34]} 24. h3 {[%clk 0:02:02]}  g6 {[%clk 0:00:28]} 25. Nd4 {[%clk 0:02:01]}  Qf6 {[%clk 0:00:25]} 26. Kg2 {[%clk 0:01:59]}  hxg4 {[%clk 0:00:24]} 27. hxg4 {[%clk 0:01:58]}  Nxg4 {[%clk 0:00:21]} 28. fxg4 {[%clk 0:01:54]}  Bxd4 {[%clk 0:00:21]} 29. Rad1 {[%clk 0:01:46]}  Bxb2 {[%clk 0:00:16]} 30. Rxd5 {[%clk 0:01:45]}  Be5 {[%clk 0:00:13]} 31. Red1 {[%clk 0:01:42]}  Red8 {[%clk 0:00:10]} 32. Rxd8+ {[%clk 0:01:41]}  Rxd8 {[%clk 0:00:11]} 33. Rxd8+ {[%clk 0:01:40]}  Qxd8 {[%clk 0:00:12]} 34. Qb5 {[%clk 0:01:37]}  Qe7 {[%clk 0:00:09]} 35. Qd5 {[%clk 0:01:33]}  Bg7 {[%clk 0:00:07]} 36. e4 {[%clk 0:01:32]}  Qe6 {[%clk 0:00:04]} 37. Qxe6 {[%clk 0:01:32]}  fxe6 {[%clk 0:00:05]} 38. Bxa7 {[%clk 0:01:32]}  Kf7 {[%clk 0:00:05]} 39. Bc5 {[%clk 0:01:31]}  Bc3 {[%clk 0:00:05]} 40. Kf3 {[%clk 0:01:29]}  Ke8 {[%clk 0:00:06]} 41. Ke3 {[%clk 0:01:29]}  Kd7 {[%clk 0:00:06]} 42. Kd3 {[%clk 0:01:29]}  Kc6 {[%clk 0:00:05]} 43. Kc4 {[%clk 0:01:30]}  Be5 {[%clk 0:00:05]} 44. Bxb4 {[%clk 0:01:30]}  Bc7 {[%clk 0:00:06]} 45. Bc3 {[%clk 0:01:30]}  Bb6 {[%clk 0:00:06]} 46. a4 {[%clk 0:01:30]}  Bc7 {[%clk 0:00:06]} 47. a5 {[%clk 0:01:30]}  Bb8 {[%clk 0:00:07]} 48. Bb4 {[%clk 0:01:30]}  Ba7 {[%clk 0:00:07]} 49. Bc3 {[%clk 0:01:30]}  Bc5 {[%clk 0:00:07]} 50. Bd4 {[%clk 0:01:30]}  Bd6 {[%clk 0:00:07]} 51. Bb6 {[%clk 0:01:30]}  Bb8 {[%clk 0:00:07]} 52. Kd4 {[%clk 0:01:30]}  Bd6 {[%clk 0:00:07]} 53. Kc4 {[%clk 0:01:28]}  Bb8 {[%clk 0:00:07]} 54. Kd4 {[%clk 0:01:28]}  Kb5 {[%clk 0:00:07]} 55. Ke3 {[%clk 0:01:27]}  Bd6 {[%clk 0:00:07]} 56. Kd4 {[%clk 0:01:26]}  Bb8 {[%clk 0:00:07]} 57. e5 {[%clk 0:01:27]}  Kc6 {[%clk 0:00:06]} 58. Ke4 {[%clk 0:01:27]}  Kb5 {[%clk 0:00:05]} 59. Kf4 {[%clk 0:01:27]}  Kc6 {[%clk 0:00:05]} 60. Bd4 {[%clk 0:01:27]}  Kd5 {[%clk 0:00:05]} 61. Bc3 {[%clk 0:01:27]}  Ba7 {[%clk 0:00:02]} 62. a6 {[%clk 0:01:26]}  Kc4 {[%clk 0:00:03]} 63. Ba1 {[%clk 0:01:26]}  Kb5 {[%clk 0:00:02]} 64. Kg5 {[%clk 0:01:26]}  Kxa6 {[%clk 0:00:02]} 65. Kxg6 {[%clk 0:01:26]}  Kb5 {[%clk 0:00:03]} 66. Kf6 {[%clk 0:01:27]}  Kc6 {[%clk 0:00:03]} 67. Kxe6 {[%clk 0:01:27]} 1-0


[Site "https://www.chess.com"]

[Event "Titled Tuesday Blitz November 07 Early 2023"]
[White "Makarian, Rudik"]
[Black "Buchenau, Frank"]
[WhiteFideId "44105681"]
[BlackFideId "4604350"]
[WhiteElo "2966"]
[BlackElo "2505"]
[Result "1-0"]
[Round "1"]
[TimeControl "180+1"]
[Date "2023.11.07"]
[WhiteClock "0:01:19"]
[BlackClock "0:00:12"]
[Board "21"]

1. d4 {[%clk 0:02:55]}  e6 {[%clk 0:03:00]} 2. Nf3 {[%clk 0:02:55]}  Nf6 {[%clk 0:03:00]} 3. c4 {[%clk 0:02:56]}  b6 {[%clk 0:03:00]} 4. g3 {[%clk 0:02:56]}  Bb7 {[%clk 0:03:00]} 5. Bg2 {[%clk 0:02:56]}  Be7 {[%clk 0:03:00]} 6. O-O {[%clk 0:02:57]}  O-O {[%clk 0:03:00]} 7. Re1 {[%clk 0:02:57]}  a5 {[%clk 0:02:58]} 8. Nc3 {[%clk 0:02:56]}  Ne4 {[%clk 0:02:57]} 9. Qd3 {[%clk 0:02:57]}  Nxc3 {[%clk 0:02:57]} 10. bxc3 {[%clk 0:02:56]}  f5 {[%clk 0:02:56]} 11. e4 {[%clk 0:02:53]}  fxe4 {[%clk 0:02:51]} 12. Rxe4 {[%clk 0:02:54]}  Bxe4 {[%clk 0:02:44]} 13. Qxe4 {[%clk 0:02:55]}  Na6 {[%clk 0:02:12]} 14. Bf1 {[%clk 0:02:40]}  Bf6 {[%clk 0:01:54]} 15. Bd3 {[%clk 0:02:39]}  g6 {[%clk 0:01:52]} 16. h4 {[%clk 0:02:38]}  Qe7 {[%clk 0:01:43]} 17. Kg2 {[%clk 0:02:19]}  c6 {[%clk 0:01:40]} 18. Bf4 {[%clk 0:02:12]}  d5 {[%clk 0:01:34]} 19. Qe3 {[%clk 0:02:10]}  Nc7 {[%clk 0:00:42]} 20. Bxc7 {[%clk 0:01:45]}  Qxc7 {[%clk 0:00:42]} 21. Qxe6+ {[%clk 0:01:45]}  Qf7 {[%clk 0:00:24]} 22. Qxc6 {[%clk 0:01:23]}  Bxd4 {[%clk 0:00:19]} 23. Nxd4 {[%clk 0:01:20]}  Qxf2+ {[%clk 0:00:19]} 24. Kh3 {[%clk 0:01:21]}  Rf3 {[%clk 0:00:15]} 25. Qxd5+ {[%clk 0:01:20]}  Kg7 {[%clk 0:00:12]} 26. Qxf3 {[%clk 0:01:19]} 1-0


[Site "https://www.chess.com"]

[Event "Titled Tuesday Blitz November 07 Early 2023"]
[White "Kovalenko, Igor"]
[Black "Hajiyev, Kanan"]
[WhiteFideId "14117908"]
[BlackFideId "13404148"]
[WhiteElo "2957"]
[BlackElo "2503"]
[Result "1-0"]
[Round "1"]
[TimeControl "180+1"]
[Date "2023.11.07"]
[WhiteClock "0:00:51"]
[BlackClock "0:00:01"]
[Board "23"]

1. c4 {[%clk 0:02:37]}  Nf6 {[%clk 0:02:58]} 2. Nc3 {[%clk 0:02:36]}  c6 {[%clk 0:02:58]} 3. Nf3 {[%clk 0:02:34]}  d5 {[%clk 0:02:59]} 4. e3 {[%clk 0:02:34]}  g6 {[%clk 0:02:58]} 5. d4 {[%clk 0:02:33]}  Bg7 {[%clk 0:02:59]} 6. cxd5 {[%clk 0:02:34]}  cxd5 {[%clk 0:02:59]} 7. Bb5+ {[%clk 0:02:34]}  Bd7 {[%clk 0:02:59]} 8. Qb3 {[%clk 0:02:34]}  Bc6 {[%clk 0:02:44]} 9. Bxc6+ {[%clk 0:02:13]}  bxc6 {[%clk 0:02:36]} 10. O-O {[%clk 0:02:13]}  Qb6 {[%clk 0:02:34]} 11. Qa3 {[%clk 0:02:12]}  Nbd7 {[%clk 0:01:58]} 12. Bd2 {[%clk 0:02:07]}  O-O {[%clk 0:01:48]} 13. Na4 {[%clk 0:02:05]}  Qa6 {[%clk 0:01:41]} 14. Rac1 {[%clk 0:01:59]}  Ne4 {[%clk 0:01:38]} 15. Qxe7 {[%clk 0:01:43]}  Qxa4 {[%clk 0:01:14]} 16. Qxd7 {[%clk 0:01:42]}  Qxa2 {[%clk 0:01:14]} 17. Qxc6 {[%clk 0:01:42]}  Rfd8 {[%clk 0:00:54]} 18. Qc2 {[%clk 0:01:31]}  Rab8 {[%clk 0:00:52]} 19. Bc3 {[%clk 0:01:30]}  Rdc8 {[%clk 0:00:48]} 20. Qd3 {[%clk 0:01:15]}  Qb3 {[%clk 0:00:42]} 21. Nd2 {[%clk 0:01:13]}  Nxd2 {[%clk 0:00:34]} 22. Qxd2 {[%clk 0:01:14]}  Rc4 {[%clk 0:00:28]} 23. Ra1 {[%clk 0:01:13]}  Ra4 {[%clk 0:00:26]} 24. Qd1 {[%clk 0:01:07]}  Qxd1 {[%clk 0:00:17]} 25. Rfxd1 {[%clk 0:01:08]}  Rxa1 {[%clk 0:00:15]} 26. Rxa1 {[%clk 0:01:09]}  Rb7 {[%clk 0:00:14]} 27. Ra5 {[%clk 0:01:09]}  Rd7 {[%clk 0:00:14]} 28. Kf1 {[%clk 0:01:08]}  Bf6 {[%clk 0:00:13]} 29. Ke2 {[%clk 0:01:08]}  Bd8 {[%clk 0:00:14]} 30. Rc5 {[%clk 0:01:05]}  Bb6 {[%clk 0:00:14]} 31. Rc8+ {[%clk 0:01:05]}  Kg7 {[%clk 0:00:14]} 32. Kd3 {[%clk 0:01:04]}  Kf6 {[%clk 0:00:15]} 33. Rc6+ {[%clk 0:01:03]}  Ke7 {[%clk 0:00:14]} 34. Bb4+ {[%clk 0:01:03]}  Kd8 {[%clk 0:00:14]} 35. Bc5 {[%clk 0:01:02]}  Bxc5 {[%clk 0:00:04]} 36. Rxc5 {[%clk 0:01:01]}  Ke7 {[%clk 0:00:05]} 37. b4 {[%clk 0:01:01]}  Kd6 {[%clk 0:00:05]} 38. Ra5 {[%clk 0:00:59]}  Rb7 {[%clk 0:00:05]} 39. b5 {[%clk 0:00:53]}  f5 {[%clk 0:00:05]} 40. h3 {[%clk 0:00:51]}  Kd7 {[%clk 0:00:04]} 41. g4 {[%clk 0:00:50]}  fxg4 {[%clk 0:00:04]} 42. hxg4 {[%clk 0:00:50]}  h5 {[%clk 0:00:05]} 43. gxh5 {[%clk 0:00:50]}  gxh5 {[%clk 0:00:06]} 44. b6 {[%clk 0:00:51]}  Rxb6 {[%clk 0:00:04]} 45. Rxd5+ {[%clk 0:00:50]}  Kc6 {[%clk 0:00:05]} 46. Rxh5 {[%clk 0:00:51]}  Rb2 {[%clk 0:00:05]} 47. f4 {[%clk 0:00:51]}  Rb3+ {[%clk 0:00:04]} 48. Ke4 {[%clk 0:00:50]}  Kb6 {[%clk 0:00:04]} 49. f5 {[%clk 0:00:50]}  a5 {[%clk 0:00:01]} 50. f6 {[%clk 0:00:51]} 1-0


[Site "https://www.chess.com"]

[Event "Titled Tuesday Blitz November 07 Early 2023"]
[White "Kubicka, Anna"]
[Black "Grigoriants, Sergey"]
[WhiteFideId "1152254"]
[BlackFideId "4130804"]
[WhiteElo "2503"]
[BlackElo "2951"]
[Result "0-1"]
[Round "1"]
[TimeControl "180+1"]
[Date "2023.11.07"]
[WhiteClock "0:00:03"]
[BlackClock "0:00:11"]
[Board "24"]

1. e4 {[%clk 0:03:00]}  e6 {[%clk 0:02:41]} 2. d4 {[%clk 0:03:00]}  d5 {[%clk 0:02:41]} 3. Nd2 {[%clk 0:03:00]}  c5 {[%clk 0:02:38]} 4. exd5 {[%clk 0:03:01]}  Qxd5 {[%clk 0:02:37]} 5. Ngf3 {[%clk 0:03:00]}  cxd4 {[%clk 0:02:32]} 6. Bc4 {[%clk 0:03:00]}  Qd7 {[%clk 0:02:32]} 7. O-O {[%clk 0:03:01]}  Nc6 {[%clk 0:02:31]} 8. Nb3 {[%clk 0:03:01]}  a6 {[%clk 0:02:28]} 9. Nbxd4 {[%clk 0:03:00]}  Nxd4 {[%clk 0:02:28]} 10. Nxd4 {[%clk 0:03:01]}  Qc7 {[%clk 0:02:28]} 11. Qe2 {[%clk 0:02:57]}  Bd6 {[%clk 0:02:27]} 12. h3 {[%clk 0:02:52]}  Ne7 {[%clk 0:02:27]} 13. c3 {[%clk 0:02:45]}  O-O {[%clk 0:02:26]} 14. Bg5 {[%clk 0:02:38]}  h6 {[%clk 0:02:12]} 15. Be3 {[%clk 0:02:27]}  b6 {[%clk 0:02:04]} 16. Rad1 {[%clk 0:02:19]}  Bb7 {[%clk 0:01:58]} 17. Bd3 {[%clk 0:02:17]}  Nd5 {[%clk 0:01:53]} 18. Bc1 {[%clk 0:01:55]}  Bh2+ {[%clk 0:01:38]} 19. Kh1 {[%clk 0:01:51]}  Bf4 {[%clk 0:01:39]} 20. Be4 {[%clk 0:01:19]}  Bxc1 {[%clk 0:01:36]} 21. Rxc1 {[%clk 0:01:20]}  Rad8 {[%clk 0:00:53]} 22. Qf3 {[%clk 0:01:18]}  Rd7 {[%clk 0:00:51]} 23. Rcd1 {[%clk 0:01:15]}  Rfd8 {[%clk 0:00:50]} 24. Rfe1 {[%clk 0:00:54]}  b5 {[%clk 0:00:44]} 25. a3 {[%clk 0:00:34]}  Nb6 {[%clk 0:00:23]} 26. Bxb7 {[%clk 0:00:33]}  Qxb7 {[%clk 0:00:23]} 27. Qxb7 {[%clk 0:00:28]}  Rxb7 {[%clk 0:00:23]} 28. Nc6 {[%clk 0:00:24]}  Rxd1 {[%clk 0:00:21]} 29. Rxd1 {[%clk 0:00:25]}  Nc4 {[%clk 0:00:21]} 30. Nb4 {[%clk 0:00:15]}  a5 {[%clk 0:00:20]} 31. Nc6 {[%clk 0:00:13]}  a4 {[%clk 0:00:19]} 32. Nd8 {[%clk 0:00:11]}  Rc7 {[%clk 0:00:18]} 33. Rb1 {[%clk 0:00:09]}  Kf8 {[%clk 0:00:18]} 34. b3 {[%clk 0:00:07]}  Nd2 {[%clk 0:00:18]} 35. Rd1 {[%clk 0:00:06]}  Nxb3 {[%clk 0:00:18]} 36. Rd6 {[%clk 0:00:05]}  Na5 {[%clk 0:00:17]} 37. Ra6 {[%clk 0:00:04]}  Nc4 {[%clk 0:00:17]} 38. Nc6 {[%clk 0:00:05]}  g5 {[%clk 0:00:17]} 39. Nd4 {[%clk 0:00:05]}  Nxa3 {[%clk 0:00:17]} 40. Ra5 {[%clk 0:00:05]}  Rxc3 {[%clk 0:00:16]} 41. Nxb5 {[%clk 0:00:06]}  Nxb5 {[%clk 0:00:16]} 42. Rxb5 {[%clk 0:00:06]}  Rc2 {[%clk 0:00:16]} 43. Ra5 {[%clk 0:00:06]}  Rxf2 {[%clk 0:00:16]} 44. Rxa4 {[%clk 0:00:07]}  Kg7 {[%clk 0:00:16]} 45. Kg1 {[%clk 0:00:07]}  Rc2 {[%clk 0:00:16]} 46. Re4 {[%clk 0:00:07]}  Kg6 {[%clk 0:00:17]} 47. Re3 {[%clk 0:00:06]}  h5 {[%clk 0:00:17]} 48. Re5 {[%clk 0:00:06]}  h4 {[%clk 0:00:16]} 49. Kf1 {[%clk 0:00:06]}  Rc6 {[%clk 0:00:15]} 50. Re4 {[%clk 0:00:06]}  f5 {[%clk 0:00:15]} 51. Ra4 {[%clk 0:00:06]}  Kf6 {[%clk 0:00:16]} 52. Kf2 {[%clk 0:00:06]}  Rc2+ {[%clk 0:00:16]} 53. Kf3 {[%clk 0:00:05]}  Rc3+ {[%clk 0:00:17]} 54. Kf2 {[%clk 0:00:05]}  Rg3 {[%clk 0:00:17]} 55. Ra6 {[%clk 0:00:05]}  g4 {[%clk 0:00:17]} 56. hxg4 {[%clk 0:00:05]}  Rxg4 {[%clk 0:00:17]} 57. Ra8 {[%clk 0:00:04]}  Rf4+ {[%clk 0:00:17]} 58. Ke3 {[%clk 0:00:04]}  Rb4 {[%clk 0:00:18]} 59. Kf2 {[%clk 0:00:05]}  Rb2+ {[%clk 0:00:18]} 60. Kf3 {[%clk 0:00:05]}  Rb3+ {[%clk 0:00:19]} 61. Kf2 {[%clk 0:00:05]}  h3 {[%clk 0:00:19]} 62. gxh3 {[%clk 0:00:02]}  Rxh3 {[%clk 0:00:19]} 63. Ra5 {[%clk 0:00:02]}  e5 {[%clk 0:00:18]} 64. Ra6+ {[%clk 0:00:02]}  Kg5 {[%clk 0:00:18]} 65. Ra8 {[%clk 0:00:03]}  e4 {[%clk 0:00:18]} 66. Ra5 {[%clk 0:00:03]}  Kf4 {[%clk 0:00:19]} 67. Kg2 {[%clk 0:00:04]}  Rb3 {[%clk 0:00:18]} 68. Kf1 {[%clk 0:00:05]}  Rb1+ {[%clk 0:00:18]} 69. Ke2 {[%clk 0:00:05]}  Rb2+ {[%clk 0:00:19]} 70. Kf1 {[%clk 0:00:05]}  e3 {[%clk 0:00:18]} 71. Ra3 {[%clk 0:00:06]}  Kf3 {[%clk 0:00:18]} 72. Ra1 {[%clk 0:00:07]}  f4 {[%clk 0:00:17]} 73. Re1 {[%clk 0:00:07]}  Rd2 {[%clk 0:00:14]} 74. Kg1 {[%clk 0:00:08]}  e2 {[%clk 0:00:14]} 75. Kh2 {[%clk 0:00:07]}  Rd1 {[%clk 0:00:13]} 76. Rf1+ {[%clk 0:00:05]}  Rxf1 {[%clk 0:00:11]} 77. Kh3 {[%clk 0:00:03]}  Rh1# {[%clk 0:00:11]} 0-1


[Site "https://www.chess.com"]

[Event "Titled Tuesday Blitz November 07 Early 2023"]
[White "Lehtosaari, Mauri"]
[Black "Navara, David"]
[WhiteFideId "501999"]
[BlackFideId "309095"]
[WhiteElo "2501"]
[BlackElo "2927"]
[Result "0-1"]
[Round "1"]
[TimeControl "180+1"]
[Date "2023.11.07"]
[WhiteClock "0:00:26"]
[BlackClock "0:01:21"]
[Board "30"]

1. d4 {[%clk 0:02:53]}  d5 {[%clk 0:02:59]} 2. c4 {[%clk 0:02:46]}  e6 {[%clk 0:02:58]} 3. Nc3 {[%clk 0:02:46]}  c6 {[%clk 0:02:58]} 4. e4 {[%clk 0:02:44]}  Bb4 {[%clk 0:02:58]} 5. cxd5 {[%clk 0:02:43]}  exd5 {[%clk 0:02:57]} 6. e5 {[%clk 0:02:38]}  c5 {[%clk 0:02:57]} 7. Nf3 {[%clk 0:02:37]}  Nc6 {[%clk 0:02:46]} 8. Bb5 {[%clk 0:02:37]}  Ne7 {[%clk 0:02:38]} 9. O-O {[%clk 0:02:35]}  Bg4 {[%clk 0:02:31]} 10. dxc5 {[%clk 0:02:32]}  O-O {[%clk 0:02:21]} 11. Bxc6 {[%clk 0:02:26]}  Nxc6 {[%clk 0:02:11]} 12. Nxd5 {[%clk 0:01:43]}  Bxc5 {[%clk 0:02:10]} 13. Bf4 {[%clk 0:01:39]}  Nd4 {[%clk 0:02:06]} 14. Ne3 {[%clk 0:01:39]}  Nxf3+ {[%clk 0:02:00]} 15. gxf3 {[%clk 0:01:37]}  Qxd1 {[%clk 0:02:01]} 16. Rfxd1 {[%clk 0:01:36]}  Bxf3 {[%clk 0:02:02]} 17. Rdc1 {[%clk 0:01:20]}  Rac8 {[%clk 0:01:50]} 18. a3 {[%clk 0:01:09]}  g6 {[%clk 0:01:37]} 19. Rc4 {[%clk 0:00:52]}  Bxe3 {[%clk 0:01:36]} 20. Rxc8 {[%clk 0:00:51]}  Bxf4 {[%clk 0:01:36]} 21. Rxf8+ {[%clk 0:00:50]}  Kxf8 {[%clk 0:01:37]} 22. Re1 {[%clk 0:00:49]}  Ke7 {[%clk 0:01:36]} 23. b4 {[%clk 0:00:42]}  Bc6 {[%clk 0:01:30]} 24. Rc1 {[%clk 0:00:38]}  a6 {[%clk 0:01:25]} 25. Rc4 {[%clk 0:00:33]}  Bxe5 {[%clk 0:01:23]} 26. f4 {[%clk 0:00:26]}  Bb2 {[%clk 0:01:21]} 0-1


[Site "https://www.chess.com"]